[Event "35th Roquetas Festival 2024"]
[Site "Roquetas de Mar"]
[Date "2024.01.03"]
[Round "2.8"]
[White "Camacho Collados, Marcos"]
[Black "Valdepenas Octavio, Javier"]
[Result "1-0"]
[ECO "A08"]
[WhiteElo "2466"]
[BlackElo "2228"]
[Annotator "TA"]
[PlyCount "74"]
[EventDate "2024.01.02"]
[EventType "swiss"]
[EventCountry "ESP"]
[SourceTitle "playchess.com"]
[Source "ChessBase"]
[SourceQuality "1"]
[TimeControl "5400+30"]

{[%evp 19,74,7,6,0,22,25,20,11,15,-4,17,0,26,27,54,20,22,21,10,7,27,23,40,33,40,20,22,24,47,0,10,0,26,6,9,6,11,12,4,0,0,0,16,0,0,0,0,0,11,0,79,59,70,46,105,108,173]} 1. Nf3 {[%emt 0:00:04]} d5 {[%emt 0:01:19]} 2. g3 {[%emt 0:00:59]} Nf6 {[%emt 0:01:01]} 3. Bg2 {[%emt 0:00:17]} e6 {[%emt 0:01:47]} 4. O-O {[%emt 0:00:25]} Be7 {[%emt 0:00:47]} 5. d3 {[%emt 0:00:56]} O-O {[%emt 0:01:08]} 6. Nbd2 {[%emt 0:00:17]} c5 {[%emt 0:01:15]} 7. e4 {[%emt 0:00:38]} Nc6 {[%emt 0:02:21]} 8. Re1 {[%emt 0:00:24]} dxe4 {[%emt 0:06:30]} 9. dxe4 {[%emt 0:00:21]} e5 {[%emt 0:00:20]} 10. c3 {[%emt 0:01:15]} Qc7 {[%emt 0:04:24]} 11. Nh4 {[%emt 0:05:56] C00: French: Unusual White 2nd moves.} Bg4 {[%emt 0:05:39]} 12. Qc2 {[%emt 0:00:27]} Be6 {[%emt 0:05:01] [#]} 13. Nf1 $146 {[%emt 0:12:02] The position is equal.} ({Predecessor:} 13. Nf5 Rad8 14. Nf3 Bc4 15. Bf1 Bxf1 16. Rxf1 c4 17. Qe2 b5 18. b3 Na5 19. Bg5 {1-0 Lupienski,E-Hasidume,S (1730) W-ch WS/O/023 email 2005}) 13... Rfd8 {[%emt 0:16:54]} 14. Ne3 {[%emt 0:10:16]} g6 {[%emt 0:04:50]} 15. Bf1 {[%emt 0:07:15]} Na5 {[%emt 0:01:19]} 16. b3 {[%emt 0:01:32]} Qc6 {[%emt 0:16:21]} 17. f3 {[%emt 0:03:09]} b5 {[%emt 0:01:19]} 18. c4 {[%emt 0:00:33]} bxc4 {[%emt 0:02:58]} 19. bxc4 {[%emt 0:00:25]} Qe8 {[%emt 0:05:46]} 20. Nd5 {[%emt 0:04:15]} Rac8 {[%emt 0:02:48] Wards off Nc7} 21. Ng2 {[%emt 0:04:13]} Nc6 {[%emt 0:01:04]} 22. Nge3 {[%emt 0:00:28]} Nd4 {[%emt 0:00:24][%csl LRc2,LRf3]} 23. Qf2 {[%emt 0:00:06]} Qd7 {[%emt 0:06:48]} 24. Nc3 {[%emt 0:01:18]} (24. Nxe7+ $14 {was preferrable.} Qxe7 25. Nd5 Bxd5 26. cxd5) 24... Re8 {[%emt 0:01:29]} 25. Bg2 {[%emt 0:04:36]} Bd8 {[%emt 0:02:05]} 26. Bd2 {[%emt 0:04:20]} Rb8 {[%emt 0:04:29]} 27. Rab1 {[%emt 0:01:40]} Be7 {[%emt 0:02:13]} 28. Rec1 {[%emt 0:08:58]} Rb6 {[%emt 0:01:02]} 29. Rxb6 {[%emt 0:01:05]} axb6 {[%emt 0:00:04]} 30. Rb1 {[%emt 0:00:19]} Rb8 {[%emt 0:00:40]} 31. a4 {[%emt 0:00:41]} (31. f4 {keeps more tension.} exf4 32. gxf4 Ng4 33. Nxg4 Bxg4 34. Be3) 31... Qd8 {[%emt 0:01:22]} 32. Rb2 {[%emt 0:03:21]} Ne8 {[%emt 0:00:16]} 33. Qf1 {[%emt 0:05:34]} Bf6 {[%emt 0:00:34]} 34. Ned5 {[%emt 0:01:08]} Bg7 {[%emt 0:00:34] [#]} (34... Bxd5 $11 35. Nxd5 Nc7) 35. Qb1 $1 $16 {[%emt 0:01:03][%cal Rd5b6]} Nd6 {[%emt 0:00:11]} 36. Nxb6 {[%emt 0:01:38]} Rb7 {[%emt 0:00:57]} (36... Nxc4 $14 37. Nxc4 Rxb2 38. Nxb2 Nxf3+ 39. Bxf3 Qxd2) 37. a5 {[%emt 0:04:02]} Nxc4 {[%emt 0:01:01] Weighted Error Value: White=0.09 (flawless) /Black=0.14 (very precise)} (37... h5 $16 {was called for.}) 1-0

[Event "35th Roquetas Festival 2024"]
[Site "Roquetas de Mar"]
[Date "2024.01.03"]
[Round "2.9"]
[White "Marin Ferragut, Pau"]
[Black "Macias Pino, Diego"]
[Result "0-1"]
[ECO "B51"]
[WhiteElo "2178"]
[BlackElo "2456"]
[Annotator "RC"]
[PlyCount "62"]
[EventDate "2024.01.02"]
[EventType "swiss"]
[EventCountry "ESP"]
[SourceTitle "playchess.com"]
[Source "ChessBase"]
[SourceQuality "1"]
[TimeControl "5400+30"]

1. e4 {[%emt 0:00:11]} c5 {[%emt 0:00:26]} 2. Nf3 {[%emt 0:00:35]} d6 {[%emt 0:00:06]} 3. Bb5+ {[%emt 0:00:14]} Nd7 {[%emt 0:00:07]} 4. c3 {[%emt 0:00:22]} Ngf6 {[%emt 0:01:18]} 5. Qe2 {[%emt 0:00:13]} a6 {[%emt 0:03:58]} 6. Ba4 {[%emt 0:00:09]} b5 {[%emt 0:02:51]} 7. Bc2 {[%emt 0:00:02]} Bb7 {[%emt 0:00:15]} 8. d4 {[%emt 0:00:17]} e6 {[%emt 0:00:08]} 9. O-O {[%emt 0:00:29]} Be7 {[%emt 0:02:14]} 10. Rd1 {[%emt 0:06:08]} Rc8 {[%emt 0:02:25]} 11. a4 {[%emt 0:02:01]} bxa4 {[%emt 0:02:09]} 12. Rxa4 {[%emt 0:00:50]} cxd4 {[%emt 0:03:24]} 13. Raxd4 {[%emt 0:01:40]} e5 {[%emt 0:04:08]} 14. Rc4 {[%emt 0:10:56]} Rb8 {[%emt 0:06:39]} 15. Na3 {[%emt 0:05:31]} O-O {[%emt 0:05:17]} 16. Bg5 {[%emt 0:01:59]} Nb6 {[%emt 0:07:52]} 17. Nxe5 {[%emt 0:04:47]} Nxc4 18. Nexc4 {[%emt 0:02:51]} Qc7 {[%emt 0:09:47]} 19. Bxf6 {[%emt 0:16:57]} Bxf6 {[%emt 0:00:44]} 20. Nxd6 {[%emt 0:01:23]} Be5 {[%emt 0:13:03]} 21. Nac4 {[%emt 0:00:12]} Rfd8 {[%emt 0:01:06]} 22. Nxb7 {[%emt 0:10:58]} Rxd1+ {[%emt 0:01:03]} 23. Bxd1 {[%emt 0:00:43]} Bxh2+ {[%emt 0:01:46]} 24. Kh1 {[%emt 0:00:05]} Rxb7 {[%emt 0:00:08]} 25. g3 {[%emt 0:01:11]} Bxg3 {[%emt 0:00:02]} 26. fxg3 {[%emt 0:00:08]} Qxg3 {[%emt 0:00:02]} 27. e5 {[%emt 0:01:43]} Re7 {[%emt 0:12:45]} 28. Bc2 {[%emt 0:01:58]} Re6 {[%emt 0:00:58]} 29. Qg2 {[%emt 0:02:22]} Rh6+ {[%emt 0:00:04]} 30. Kg1 {[%emt 0:00:13]} Qe1+ 31. Qf1 {[%emt 0:00:20]} Rh1+ {[%emt 0:00:19]} 0-1

[Event "35th Roquetas Festival 2024"]
[Site "Roquetas de Mar"]
[Date "2024.01.03"]
[Round "2.10"]
[White "Espinosa Aranda, Angel"]
[Black "Serrano Almendros, Alejandro"]
[Result "1-0"]
[ECO "B30"]
[WhiteElo "2431"]
[BlackElo "2206"]
[Annotator "RC"]
[PlyCount "67"]
[EventDate "2024.01.02"]
[EventType "swiss"]
[EventCountry "ESP"]
[SourceTitle "playchess.com"]
[Source "ChessBase"]
[SourceQuality "1"]
[TimeControl "5400+30"]

1. e4 {[%emt 0:00:05]} c5 {[%emt 0:00:05]} 2. Nf3 {[%emt 0:00:41]} Nc6 {[%emt 0:00:11]} 3. Bb5 {[%emt 0:01:50]} e6 {[%emt 0:00:17]} 4. O-O {[%emt 0:00:09]} Nge7 {[%emt 0:00:14]} 5. c3 {[%emt 0:00:05]} a6 {[%emt 0:07:10]} 6. Ba4 {[%emt 0:00:04]} b5 {[%emt 0:00:27]} 7. Bc2 {[%emt 0:00:05]} d5 {[%emt 0:00:31]} 8. a4 {[%emt 0:01:43]} Rb8 {[%emt 0:15:33]} 9. axb5 {[%emt 0:00:59]} axb5 {[%emt 0:00:05]} 10. d4 {[%emt 0:00:05]} Ng6 {[%emt 0:04:21]} 11. exd5 {[%emt 0:08:16]} Qxd5 {[%emt 0:02:04]} 12. c4 {[%emt 0:02:50]} bxc4 {[%emt 0:02:52]} 13. Nc3 {[%emt 0:00:41]} Qd6 {[%emt 0:11:21]} 14. Ba4 {[%emt 0:04:19]} Be7 {[%emt 0:06:46]} 15. d5 {[%emt 0:12:09]} exd5 {[%emt 0:00:27]} 16. Nxd5 {[%emt 0:00:05]} Be6 {[%emt 0:04:26]} 17. Nxe7 {[%emt 0:16:21]} Kxe7 {[%emt 0:00:24]} 18. Be3 {[%emt 0:01:04]} Nb4 {[%emt 0:05:20]} 19. Qxd6+ {[%emt 0:09:47]} Kxd6 {[%emt 0:00:06]} 20. Rfd1+ {[%emt 0:00:06]} Bd5 {[%emt 0:04:35]} 21. b3 {[%emt 0:06:06]} c3 {[%emt 0:01:32]} 22. Rac1 {[%emt 0:02:43]} c2 {[%emt 0:03:21]} 23. Rd2 {[%emt 0:00:13]} f5 {[%emt 0:03:59]} 24. g3 {[%emt 0:06:02]} Ke6 {[%emt 0:14:55]} 25. Ne1 {[%emt 0:01:56]} Be4 {[%emt 0:03:12]} 26. Bxc5 {[%emt 0:02:18]} Na2 {[%emt 0:06:21]} 27. Rcxc2 {[%emt 0:00:06]} Bxc2 {[%emt 0:00:05]} 28. Nxc2 {[%emt 0:00:05]} Rhd8 {[%emt 0:01:03]} 29. Nd4+ {[%emt 0:00:07]} Kd5 {[%emt 0:00:34]} 30. Ba7 {[%emt 0:00:22]} Nb4 {[%emt 0:02:20]} 31. Nc6+ {[%emt 0:01:56]} Ke4 {[%emt 0:00:22]} 32. Nxd8 {[%emt 0:00:12]} Rc8 {[%emt 0:00:19]} 33. Kg2 {[%emt 0:01:46]} Ne5 {[%emt 0:00:34]} 34. Rd4# 1-0

[Event "35th Roquetas Festival 2024"]
[Site "Roquetas de Mar"]
[Date "2024.01.03"]
[Round "2.11"]
[White "Rodriguez Lopez, Rafael"]
[Black "Merario Alarcon, Andres"]
[Result "0-1"]
[ECO "B30"]
[WhiteElo "2152"]
[BlackElo "2429"]
[Annotator "RC"]
[PlyCount "120"]
[EventDate "2024.01.02"]
[EventType "swiss"]
[EventCountry "ESP"]
[SourceTitle "playchess.com"]
[Source "ChessBase"]
[SourceQuality "1"]
[TimeControl "5400+30"]

1. e4 {[%emt 0:00:03]} c5 {[%emt 0:02:45]} 2. Nf3 {[%emt 0:00:05]} Nc6 {[%emt 0:00:04]} 3. Bb5 {[%emt 0:00:40]} d6 {[%emt 0:00:14]} 4. O-O {[%emt 0:00:38]} Bd7 {[%emt 0:00:22]} 5. Re1 {[%emt 0:01:30]} Nf6 {[%emt 0:00:43]} 6. h3 {[%emt 0:01:07]} a6 {[%emt 0:00:20]} 7. Bf1 {[%emt 0:00:10]} Rg8 {[%emt 0:00:10]} 8. d4 {[%emt 0:00:45]} cxd4 {[%emt 0:00:57]} 9. Nxd4 {[%emt 0:00:54]} Nxd4 {[%emt 0:00:50]} 10. Qxd4 {[%emt 0:00:08]} g5 {[%emt 0:00:14]} 11. e5 {[%emt 0:01:39]} dxe5 {[%emt 0:00:08]} 12. Qxe5 {[%emt 0:00:32]} e6 {[%emt 0:00:45]} 13. Bxg5 {[%emt 0:01:09]} Ng4 {[%emt 0:03:58]} 14. Bxd8 {[%emt 0:03:01]} Nxe5 {[%emt 0:00:15]} 15. Rxe5 {[%emt 0:00:08]} Rxd8 {[%emt 0:00:32]} 16. Nc3 {[%emt 0:00:56]} Bc6 {[%emt 0:00:34]} 17. Rd1 {[%emt 0:00:47]} Rxd1 {[%emt 0:00:54]} 18. Nxd1 {[%emt 0:00:04]} Bg7 {[%emt 0:02:53]} 19. Re3 {[%emt 0:02:49]} Bd4 {[%emt 0:11:39]} 20. Rd3 {[%emt 0:00:26]} e5 {[%emt 0:15:54]} 21. c3 {[%emt 0:00:14]} Bc5 {[%emt 0:02:36]} 22. Ne3 {[%emt 0:00:45]} Rg6 {[%emt 0:18:25]} 23. Rd2 {[%emt 0:01:32]} h5 {[%emt 0:20:29]} 24. Bc4 {[%emt 0:03:08]} Be4 {[%emt 0:06:02]} 25. b4 {[%emt 0:07:34]} Bxe3 {[%emt 0:03:36]} 26. fxe3 {[%emt 0:00:08]} Rg3 {[%emt 0:01:18]} 27. Rf2 {[%emt 0:00:53]} f5 {[%emt 0:00:56]} 28. Be6 {[%emt 0:00:11]} f4 {[%emt 0:01:21]} 29. exf4 {[%emt 0:00:05]} exf4 {[%emt 0:00:11]} 30. Rxf4 {[%emt 0:08:03]} Rxg2+ {[%emt 0:00:11]} 31. Kf1 {[%emt 0:00:04]} Bc6 {[%emt 0:00:14]} 32. Bf7+ {[%emt 0:01:06]} Ke7 {[%emt 0:00:39]} 33. Bxh5 {[%emt 0:00:13]} Rg3 {[%emt 0:01:15]} 34. h4 {[%emt 0:03:38]} Rxc3 {[%emt 0:00:13]} 35. Bg6 {[%emt 0:00:09]} Rh3 {[%emt 0:02:23]} 36. Be4 {[%emt 0:02:27]} Rh2 {[%emt 0:01:40]} 37. Bxc6 {[%emt 0:02:19]} bxc6 {[%emt 0:00:00]} 38. a4 {[%emt 0:00:17]} Ra2 {[%emt 0:00:56]} 39. a5 {[%emt 0:00:38]} c5 {[%emt 0:01:14]} 40. bxc5 {[%emt 0:00:23]} Rxa5 {[%emt 0:00:05]} 41. Rf5 {[%emt 0:10:58]} Ra4 {[%emt 0:01:11]} 42. h5 {[%emt 0:04:24]} Rh4 {[%emt 0:01:35]} 43. Ke2 {[%emt 0:00:20]} Ke6 {[%emt 0:00:29]} 44. Rg5 {[%emt 0:00:10]} Kf6 {[%emt 0:00:16]} 45. Rg6+ {[%emt 0:00:18]} Kf7 {[%emt 0:00:43]} 46. Rh6 {[%emt 0:00:45]} Rc4 {[%emt 0:00:47]} 47. c6 {[%emt 0:00:25]} Kg7 {[%emt 0:00:31]} 48. Rd6 {[%emt 0:00:11]} a5 {[%emt 0:00:19]} 49. Kd3 {[%emt 0:00:13]} Rc1 {[%emt 0:00:20]} 50. h6+ {[%emt 0:05:29]} Kh7 {[%emt 0:00:23]} 51. Kd4 {[%emt 0:00:41]} a4 {[%emt 0:00:07]} 52. Rd7+ {[%emt 0:00:08]} Kxh6 {[%emt 0:00:28]} 53. Kd5 {[%emt 0:00:07]} Kg6 {[%emt 0:01:23]} 54. Ra7 {[%emt 0:00:26]} Kf6 {[%emt 0:00:30]} 55. Kd6 {[%emt 0:00:23]} Rd1+ {[%emt 0:00:25]} 56. Kc7 {[%emt 0:00:29]} Rd4 {[%emt 0:00:36]} 57. Kb8 {[%emt 0:02:34]} Rd8+ {[%emt 0:00:31]} 58. Kb7 {[%emt 0:00:20]} Rd4 {[%emt 0:00:12]} 59. c7 {[%emt 0:00:17]} Rb4+ {[%emt 0:00:12]} 60. Ka8 {[%emt 0:00:24]} Ke5 0-1

[Event "35th Roquetas Festival 2024"]
[Site "Roquetas de Mar"]
[Date "2024.01.03"]
[Round "2.12"]
[White "Huerga Leache, Mikel"]
[Black "Valdats, Reinis"]
[Result "1/2-1/2"]
[ECO "E11"]
[WhiteElo "2424"]
[BlackElo "2143"]
[Annotator "RC"]
[PlyCount "79"]
[EventDate "2024.01.02"]
[EventType "swiss"]
[EventCountry "ESP"]
[SourceTitle "playchess.com"]
[Source "ChessBase"]
[SourceQuality "1"]
[TimeControl "5400+30"]

1. d4 {[%emt 0:02:48]} Nf6 {[%emt 0:00:28]} 2. Nf3 {[%emt 0:00:59]} e6 {[%emt 0:00:46]} 3. c4 {[%emt 0:00:09]} Bb4+ {[%emt 0:00:05]} 4. Nbd2 {[%emt 0:00:06]} O-O {[%emt 0:00:06]} 5. a3 {[%emt 0:00:07]} Bxd2+ {[%emt 0:00:06]} 6. Qxd2 {[%emt 0:00:06]} d6 {[%emt 0:00:06]} 7. e3 {[%emt 0:00:04]} Nbd7 {[%emt 0:02:23]} 8. Be2 {[%emt 0:00:27]} Qe7 {[%emt 0:02:40]} 9. O-O {[%emt 0:00:58]} b6 {[%emt 0:05:33]} 10. b4 {[%emt 0:01:31]} Bb7 {[%emt 0:01:20]} 11. Bb2 {[%emt 0:00:30]} Ne4 {[%emt 0:05:25]} 12. Qc2 {[%emt 0:00:29]} f5 {[%emt 0:05:04]} 13. d5 {[%emt 0:05:32]} e5 {[%emt 0:02:36]} 14. Rad1 {[%emt 0:07:46]} Rae8 {[%emt 0:23:07]} 15. Nd2 {[%emt 0:07:48]} Nxd2 {[%emt 0:03:00]} 16. Rxd2 {[%emt 0:00:14]} f4 {[%emt 0:09:42]} 17. exf4 {[%emt 0:03:55]} Rxf4 {[%emt 0:03:43]} 18. g3 {[%emt 0:01:05]} Rff8 {[%emt 0:05:23]} 19. Bh5 {[%emt 0:06:20]} Rd8 {[%emt 0:02:54]} 20. Bg4 {[%emt 0:02:06]} Bc8 {[%emt 0:02:46]} 21. f4 {[%emt 0:06:18]} exf4 {[%emt 0:03:42]} 22. Be6+ {[%emt 0:00:47]} Kh8 {[%emt 0:00:14]} 23. gxf4 {[%emt 0:00:57]} Nf6 {[%emt 0:02:28]} 24. f5 {[%emt 0:00:32]} Bxe6 {[%emt 0:02:17]} 25. fxe6 Ng4 {[%emt 0:02:17]} 26. Qc3 {[%emt 0:37:51]} Rxf1+ {[%emt 0:03:56]} 27. Kxf1 {[%emt 0:00:01]} Rf8+ {[%emt 0:00:15]} 28. Ke2 {[%emt 0:07:17]} Qg5 {[%emt 0:05:36]} 29. h4 {[%emt 0:03:24]} Qg6 {[%emt 0:01:10]} 30. Ke1 {[%emt 0:00:01]} Ne5 {[%emt 0:02:04]} 31. Re2 {[%emt 0:00:44]} Qb1+ {[%emt 0:01:44]} 32. Bc1 {[%emt 0:00:29]} Kg8 {[%emt 0:02:51]} 33. Qc2 {[%emt 0:01:25]} Qa1 {[%emt 0:00:38]} 34. Re4 {[%emt 0:01:38]} Nd3+ {[%emt 0:00:22]} 35. Kd2 {[%emt 0:01:42]} Rf2+ {[%emt 0:00:35]} 36. Kxd3 {[%emt 0:01:19]} Rxc2 {[%emt 0:00:06]} 37. Kxc2 {[%emt 0:00:01]} Kf8 {[%emt 0:00:16]} 38. Rf4+ {[%emt 0:01:09]} Ke8 {[%emt 0:00:04]} 39. Rf7 {[%emt 0:00:28]} Qd4 {[%emt 0:01:04]} 40. Rf4 {[%emt 0:00:46]} 1/2-1/2

[Event "35th Roquetas Festival 2024"]
[Site "Roquetas de Mar"]
[Date "2024.01.03"]
[Round "2.13"]
[White "Gomez Sanjuan, Hector Fernando"]
[Black "Fiorito, Joaquin"]
[Result "1/2-1/2"]
[ECO "E20"]
[WhiteElo "2139"]
[BlackElo "2401"]
[Annotator "RC"]
[PlyCount "71"]
[EventDate "2024.01.02"]
[EventType "swiss"]
[EventCountry "ESP"]
[SourceTitle "playchess.com"]
[Source "ChessBase"]
[SourceQuality "1"]
[TimeControl "5400+30"]

1. d4 {[%emt 0:02:24]} Nf6 {[%emt 0:00:06]} 2. c4 {[%emt 0:00:54]} e6 {[%emt 0:00:05]} 3. Nc3 {[%emt 0:00:09]} Bb4 {[%emt 0:00:07]} 4. f3 {[%emt 0:00:10]} c5 {[%emt 0:00:53]} 5. d5 {[%emt 0:00:06]} b5 {[%emt 0:00:12]} 6. e4 {[%emt 0:00:05]} d6 {[%emt 0:00:05]} 7. Nge2 {[%emt 0:00:08]} bxc4 {[%emt 0:01:23]} 8. Nf4 {[%emt 0:00:07]} g5 {[%emt 0:01:27]} 9. Nfe2 {[%emt 0:00:10]} exd5 {[%emt 0:00:08]} 10. exd5 {[%emt 0:00:09]} Qe7 {[%emt 0:00:07]} 11. Bxg5 {[%emt 0:15:34]} Rg8 {[%emt 0:00:21]} 12. Bd2 {[%emt 0:04:53]} Nbd7 {[%emt 0:01:51]} 13. Qa4 {[%emt 0:05:58]} Bxc3 {[%emt 0:12:07]} 14. Bxc3 {[%emt 0:07:47]} Kf8 {[%emt 0:05:34]} 15. Qxc4 {[%emt 0:05:09]} Nb6 {[%emt 0:05:48]} 16. Qh4 {[%emt 0:08:54]} Nbxd5 {[%emt 0:01:34]} 17. O-O-O {[%emt 0:02:23]} Rb8 {[%emt 0:13:42]} 18. Qh6+ {[%emt 0:02:41]} Ke8 {[%emt 0:00:03]} 19. Bxf6 {[%emt 0:02:26]} Nxf6 {[%emt 0:00:11]} 20. Nc3 {[%emt 0:02:25]} Rb6 {[%emt 0:09:14]} 21. Bb5+ {[%emt 0:03:12]} Kd8 {[%emt 0:00:06]} 22. g4 {[%emt 0:03:32]} Be6 {[%emt 0:00:50]} 23. Rhe1 {[%emt 0:01:00]} d5 {[%emt 0:03:04]} 24. g5 {[%emt 0:08:36]} d4 {[%emt 0:00:10]} 25. gxf6 {[%emt 0:01:34]} Qb7 {[%emt 0:01:06]} 26. Qxh7 {[%emt 0:02:03]} Rg2 {[%emt 0:00:30]} 27. Qh8+ {[%emt 0:02:41]} Kc7 28. Qe8 {[%emt 0:04:55]} Qxf3 {[%emt 0:02:38]} 29. Rxe6 {[%emt 0:06:42]} fxe6 {[%emt 0:00:42]} 30. f7 {[%emt 0:02:16]} Rf2 {[%emt 0:01:58]} 31. Qe7+ {[%emt 0:01:43]} Kb8 {[%emt 0:00:04]} 32. Qd8+ {[%emt 0:01:51]} Kb7 {[%emt 0:00:09]} 33. Qd7+ {[%emt 0:00:24]} Kb8 {[%emt 0:00:07]} 34. Qd8+ {[%emt 0:02:05]} Kb7 {[%emt 0:00:11]} 35. Qd7+ {[%emt 0:01:07]} Kb8 {[%emt 0:00:19]} 36. Qd8+ {[%emt 0:02:09]} 1/2-1/2

[Event "35th Roquetas Festival 2024"]
[Site "Roquetas de Mar"]
[Date "2024.01.03"]
[Round "2.14"]
[White "Tejedor Fuente, Enrique"]
[Black "Navarro Martinez, Victor"]
[Result "1/2-1/2"]
[ECO "A14"]
[WhiteElo "2395"]
[BlackElo "2124"]
[Annotator "RC"]
[PlyCount "100"]
[EventDate "2024.01.02"]
[EventType "swiss"]
[EventCountry "ESP"]
[SourceTitle "playchess.com"]
[Source "ChessBase"]
[SourceQuality "1"]
[TimeControl "5400+30"]

1. c4 {[%emt 0:05:00]} e6 {[%emt 0:02:00]} 2. Nf3 {[%emt 0:01:47]} d5 {[%emt 0:00:44]} 3. g3 {[%emt 0:02:34]} Nf6 {[%emt 0:01:42]} 4. Bg2 {[%emt 0:00:34]} Be7 {[%emt 0:05:51]} 5. O-O {[%emt 0:00:39]} O-O {[%emt 0:00:08]} 6. d4 {[%emt 0:05:42]} dxc4 {[%emt 0:02:06]} 7. Qc2 {[%emt 0:01:54]} a6 {[%emt 0:01:43]} 8. Qxc4 {[%emt 0:02:23]} b5 {[%emt 0:00:30]} 9. Qc2 {[%emt 0:00:10]} Bb7 {[%emt 0:00:32]} 10. Bf4 {[%emt 0:08:19]} Nd5 {[%emt 0:14:56]} 11. Nc3 {[%emt 0:05:26]} Nxf4 {[%emt 0:07:02]} 12. gxf4 {[%emt 0:01:32]} Nd7 {[%emt 0:01:00]} 13. Rfd1 {[%emt 0:05:35]} Qc8 {[%emt 0:05:13]} 14. Ne5 {[%emt 0:10:38]} Nxe5 {[%emt 0:08:35]} 15. Bxb7 {[%emt 0:05:55]} Qxb7 {[%emt 0:00:05]} 16. dxe5 {[%emt 0:05:43]} c5 {[%emt 0:09:43]} 17. Ne4 {[%emt 0:04:19]} c4 {[%emt 0:01:32]} 18. Nd6 {[%emt 0:03:57]} Qc6 {[%emt 0:07:30]} 19. Qe4 {[%emt 0:04:52]} Qxe4 {[%emt 0:01:03]} 20. Nxe4 {[%emt 0:00:02]} Rfd8 {[%emt 0:01:28]} 21. e3 {[%emt 0:00:57]} Rxd1+ {[%emt 0:04:52]} 22. Rxd1 {[%emt 0:00:09]} Rd8 {[%emt 0:00:06]} 23. Rxd8+ {[%emt 0:11:04]} Bxd8 {[%emt 0:00:01]} 24. Kf1 {[%emt 0:00:22]} Kf8 {[%emt 0:02:24]} 25. Ke2 {[%emt 0:01:28]} Ke7 {[%emt 0:01:34]} 26. Kd1 {[%emt 0:03:38]} Bc7 {[%emt 0:04:30]} 27. Kc2 {[%emt 0:00:31]} f6 {[%emt 0:00:23]} 28. exf6+ {[%emt 0:00:23]} gxf6 {[%emt 0:00:01]} 29. h3 {[%emt 0:01:04]} f5 {[%emt 0:04:45]} 30. Ng5 {[%emt 0:01:09]} h6 {[%emt 0:01:56]} 31. Nf3 {[%emt 0:00:35]} Kd6 {[%emt 0:03:11]} 32. Kd2 {[%emt 0:02:55]} Kd5 {[%emt 0:00:16]} 33. Kd1 {[%emt 0:01:41]} a5 {[%emt 0:01:23]} 34. Kc2 {[%emt 0:02:06]} Bb8 {[%emt 0:02:28]} 35. Nd4 {[%emt 0:01:11]} b4 {[%emt 0:00:22]} 36. b3 {[%emt 0:00:53]} Bxf4 {[%emt 0:02:47]} 37. bxc4+ {[%emt 0:00:04]} Kxc4 {[%emt 0:00:00]} 38. Nxe6 {[%emt 0:00:21]} Be5 39. Nd8 Kd5 {[%emt 0:04:26]} 40. Kb3 {[%emt 0:02:26]} Bc7 {[%emt 0:00:47]} 41. Nf7 {[%emt 0:00:07]} Ke6 {[%emt 0:00:16]} 42. Nxh6 {[%emt 0:00:24]} Kf6 {[%emt 0:00:11]} 43. a3 {[%emt 0:00:59]} bxa3 {[%emt 0:00:51]} 44. Kxa3 {[%emt 0:00:01]} Kg6 {[%emt 0:00:25]} 45. Ng4 {[%emt 0:00:59]} fxg4 {[%emt 0:00:20]} 46. hxg4 {[%emt 0:00:01]} Kg5 {[%emt 0:00:24]} 47. f3 {[%emt 0:00:07]} Bd6+ {[%emt 0:00:14]} 48. Ka4 {[%emt 0:00:50]} Bb4 {[%emt 0:00:05]} 49. Kb5 {[%emt 0:00:24]} Bd2 {[%emt 0:01:13]} 50. Ka4 {[%emt 0:00:08]} Be1 1/2-1/2

[Event "35th Roquetas Festival 2024"]
[Site "Roquetas de Mar"]
[Date "2024.01.03"]
[Round "2.15"]
[White "Martinez Piqueras, Carlos"]
[Black "Stremavicius, Pijus"]
[Result "0-1"]
[ECO "C09"]
[WhiteElo "2126"]
[BlackElo "2393"]
[Annotator "RC"]
[PlyCount "106"]
[EventDate "2024.01.02"]
[EventType "swiss"]
[EventCountry "ESP"]
[SourceTitle "playchess.com"]
[Source "ChessBase"]
[SourceQuality "1"]
[TimeControl "5400+30"]

1. e4 {[%emt 0:03:54]} e6 {[%emt 0:07:44]} 2. d4 {[%emt 0:00:15]} d5 {[%emt 0:00:05]} 3. Nd2 {[%emt 0:00:32]} c5 {[%emt 0:00:05]} 4. exd5 {[%emt 0:00:35]} exd5 {[%emt 0:00:06]} 5. Ngf3 {[%emt 0:00:18]} Nc6 {[%emt 0:00:04]} 6. Bb5 {[%emt 0:01:12]} Qe7+ {[%emt 0:00:06]} 7. Be2 {[%emt 0:01:22]} Qc7 {[%emt 0:00:06]} 8. O-O {[%emt 0:00:21]} Nf6 {[%emt 0:00:05]} 9. dxc5 {[%emt 0:01:10]} Bxc5 {[%emt 0:00:39]} 10. Nb3 {[%emt 0:00:06]} Be7 {[%emt 0:00:51]} 11. Nbd4 {[%emt 0:03:18]} O-O {[%emt 0:01:37]} 12. h3 {[%emt 0:01:44]} Re8 {[%emt 0:06:32]} 13. c3 {[%emt 0:05:02]} a6 {[%emt 0:00:37]} 14. Bd3 {[%emt 0:04:07]} Ne4 {[%emt 0:00:35]} 15. Re1 {[%emt 0:08:11]} Bf6 {[%emt 0:00:21]} 16. Be3 {[%emt 0:17:41]} Bd7 {[%emt 0:00:52]} 17. Qb3 {[%emt 0:00:57]} Qd6 {[%emt 0:03:32]} 18. Rad1 {[%emt 0:05:12]} Rad8 {[%emt 0:11:36]} 19. Ne2 {[%emt 0:06:33]} Bc8 {[%emt 0:03:14]} 20. Bb6 {[%emt 0:16:50]} Nc5 {[%emt 0:01:05]} 21. Qc2 {[%emt 0:02:14]} Nxd3 {[%emt 0:00:11]} 22. Qxd3 {[%emt 0:00:09]} Ne5 {[%emt 0:00:28]} 23. Nxe5 {[%emt 0:00:03]} Qxb6 {[%emt 0:00:06]} 24. Ng4 {[%emt 0:00:42]} Bxg4 {[%emt 0:00:17]} 25. hxg4 {[%emt 0:00:01]} Qxb2 {[%emt 0:00:02]} 26. Nf4 {[%emt 0:06:01]} Rxe1+ {[%emt 0:01:00]} 27. Rxe1 {[%emt 0:00:04]} Qxc3 {[%emt 0:00:20]} 28. Qb1 {[%emt 0:03:58]} g6 {[%emt 0:00:19]} 29. Rd1 {[%emt 0:00:43]} Qc4 {[%emt 0:00:28]} 30. g3 {[%emt 0:00:33]} b5 {[%emt 0:00:17]} 31. Rc1 {[%emt 0:00:16]} Qd4 {[%emt 0:01:39]} 32. Qb3 {[%emt 0:02:13]} Qb2 {[%emt 0:00:48]} 33. Rc6 {[%emt 0:02:59]} a5 {[%emt 0:11:59]} 34. Qf3 {[%emt 0:03:19]} Bd4 {[%emt 0:00:31]} 35. Kg2 {[%emt 0:02:08]} Qxa2 {[%emt 0:00:26]} 36. Rc7 {[%emt 0:02:52]} Be5 {[%emt 0:06:40]} 37. Rb7 {[%emt 0:00:16]} Bxf4 {[%emt 0:00:20]} 38. Qxf4 {[%emt 0:00:06]} d4 {[%emt 0:00:03]} 39. Rxb5 {[%emt 0:00:50]} Qe2 {[%emt 0:04:14]} 40. Re5 {[%emt 0:01:03]} Qc4 {[%emt 0:00:56]} 41. Rxa5 {[%emt 0:00:36]} Qc6+ {[%emt 0:00:20]} 42. Qf3 {[%emt 0:00:29]} Qd7 {[%emt 0:00:45]} 43. Ra1 {[%emt 0:00:33]} d3 {[%emt 0:00:06]} 44. Rd1 {[%emt 0:00:06]} d2 {[%emt 0:00:04]} 45. Qe3 {[%emt 0:00:25]} Qd5+ {[%emt 0:00:05]} 46. Qf3 {[%emt 0:00:53]} Qd4 {[%emt 0:00:10]} 47. g5 {[%emt 0:00:30]} Kg7 {[%emt 0:00:25]} 48. Qb3 {[%emt 0:00:35]} Qe5 {[%emt 0:01:18]} 49. Qb6 {[%emt 0:00:26]} Qxg5 {[%emt 0:00:59]} 50. Qb2+ {[%emt 0:00:26]} Kg8 {[%emt 0:00:05]} 51. Qc3 {[%emt 0:00:30]} Qd5+ {[%emt 0:00:09]} 52. f3 {[%emt 0:00:40]} h5 {[%emt 0:00:33]} 53. Qf6 {[%emt 0:00:26]} Re8 {[%emt 0:00:27]} 0-1